Cogmind - Beta 16 @@@ ROGUE MODE // 2026.01.18 @ 18:59:39 Player: opdo Result: Destroyed by G-50 Soldier with Heavy Laser Performance ------------- Evolutions (5) 2500 Regions Visited (12) 2400 Robots Destroyed (125) 625 Value Destroyed (5398) 5398 Prototype IDs (12) 240 Alien Tech Used (0) 0 Bonus (1889) 1889 TOTAL SCORE: 13052 Bonus ------- Follower Combat Kills 589 Network Hubs Disabled 200 Met Zhirov 300 Met R17 at Cetus 500 Read Decrypted Archives 300 Cogmind --------- Core Integrity 0/1000 Matter 225/450 Energy 49/100 System Corruption 35% Temperature Cool (18) Movement Core (50) Location -5/Hub_04(d) Parts ------- > --- POWER (2) -------- (None) > --- PROPULSION (5) --- (None) > --- UTILITY (7) ------ Large Matter Pod Improved Signal Interpreter > --- WEAPON (3) ------- (None) > --- INVENTORY (5) ---- Faulty Improved Lightning Gun Advanced Beam Rifle Heavy Beamcaster Advanced Variable Charge Gun Advanced KE Penetrator Peak State ------------ > --- POWER ------------ Reinforced Deuterium Engine Neutrino Core > --- PROPULSION ------- Improved Medium Treads Improved Medium Treads Improved Medium Treads Armored Medium Treads Myomer Exoskeleton > --- UTILITY ---------- Armored Scrap Engine High-capacity Storage Unit Improved Sensor Array Improved Signal Interpreter System Shield High-powered Tractor Beam > --- WEAPON ----------- Bore Cannon Antimatter Cannon Phasing Sabre > --- INVENTORY -------- Compact Wheel Compact Wheel Antigrav System Cryofiber Web Large Matter Pod Matter Filter Hardened Medium Armor Plating Improved Medium Armor Plating Reflective Plating Hardlight Generator Improved Recalibrator Advanced Beam Rifle Heavy Beamcaster Flak Cannon Heavy Shock Bomb Launcher Missile Launcher Heavy Rocket Launcher [Rating: 92] Favorites ----------- Power Improved Ion Engine Engine Improved Ion Engine Power Core Light Nuclear Core Reactor Quantum Reactor Propulsion Light Treads Treads Light Treads Leg Constructs Wheel Compact Wheel Utility High-capacity Storage Unit Device Improved Sensor Array Storage High-capacity Storage Unit Processor Improved Signal Interpreter Hackware System Shield Protection Hardened Medium Armor Plating Weapon Shotgun Energy Gun Pulse Rifle Energy Cannon Subdweller Beam Cannon Ballistic Gun Shotgun Ballistic Cannon Advanced Assault Cannon Launcher Heavy Rocket Launcher Slashing Weapon Axe Build | -11 -10 -10 -10 -8 -7 -7 -7 -5 -5 -5 -5 -5 ------- Run | Yrd Mat Min Sub Mat Fac Sto Rec Fac Ext Cet Arc Hub Slots Evolved 10 | . . . . 4 2 . . 4 . . . . Power 1 | . . . . . 1 . . . . . . . Propulsion 3 | . . . . 2 . . . 1 . . . . Utility 5 | . . . . 2 1 . . 2 . . . . Weapon 1 | . . . . . . . . 1 . . . . Parts Attached 114 | 7 6 2 3 29 16 8 8 14 12 6 . 3 Power 19 | 1 1 1 . 2 4 3 2 1 3 1 . . Engine 10 | 1 1 . . 1 2 2 2 . 1 . . . Core 8 | . . 1 . 1 2 1 . 1 2 . . . Reactor 1 | . . . . . . . . . . 1 . . Propulsion 34 | 2 2 . 2 8 3 1 4 6 4 . . 2 Treads 25 | 2 2 . 2 8 2 1 2 3 3 . . . Leg 2 | . . . . . . . . . . . . 2 Wheel 7 | . . . . . 1 . 2 3 1 . . . Hover . | . . . . . . . . . . . . . Flight . | . . . . . . . . . . . . . Utility 29 | 2 1 1 . 7 5 1 1 5 2 4 . . Device 14 | 1 . . . 3 2 1 1 2 2 2 . . Storage 4 | 1 1 . . 1 . . . . . 1 . . Processor 6 | . . . . 1 3 . . 2 . . . . Hackware 1 | . . . . . . . . 1 . . . . Protection 4 | . . 1 . 2 . . . . . 1 . . Artifact . | . . . . . . . . . . . . . Weapon 32 | 2 2 . 1 12 4 3 1 2 3 1 . 1 Energy Gun 9 | . . . . 9 . . . . . . . . Energy Cannon 1 | . . . . 1 . . . . . . . . Ballistic Gun 5 | 2 2 . . 1 . . . . . . . . Ballistic Cannon 12 | . . . 1 . 3 2 1 2 2 1 . . Launcher 3 | . . . . 1 . 1 . . . . . 1 Special Weapon . | . . . . . . . . . . . . . Impact Weapon . | . . . . . . . . . . . . . Slashing Weapon 2 | . . . . . 1 . . . 1 . . . Piercing Weapon . | . . . . . . . . . . . . . Special Melee Weapon . | . . . . . . . . . . . . . Unidentified Prototypes 5 | . . . . 2 . . 1 1 . 1 . . Parts Lost 61 | . . . 2 3 7 5 1 10 8 7 . 18 Power 13 | . . . . 1 3 1 1 3 2 1 . 1 Propulsion 26 | . . . 2 . 4 3 . 4 3 3 . 7 Utility 12 | . . . . 2 . . . 2 1 2 . 5 Weapon 10 | . . . . . . 1 . 1 2 1 . 5 Highest Loss Streak 16 | . . . 1 2 3 2 1 4 5 4 . 16 To Critical Strikes . | . . . . . . . . . . . . . Average Backups 15 | 1 9 10 9 18 19 19 17 15 17 17 20 19 Power . | . 1 1 1 1 . . . . . . . . Propulsion 2 | . 3 3 2 4 4 1 . 1 2 2 3 2 Utility 5 | . 1 2 2 3 7 10 9 9 8 7 7 6 Weapon 6 | . 2 4 4 8 8 7 6 4 5 6 10 9 Tool/Special . | . . . . . . . . . . . . . Unused Backups 32 | . 6 . . 6 3 1 2 . . 1 . 13 Power 1 | . 1 . . . . . . . . . . . Propulsion 5 | . 1 . . 2 1 . . . . . . 1 Utility 11 | . 1 . . 1 . 1 2 . . 1 . 5 Weapon 14 | . 3 . . 2 2 . . . . . . 7 Tool/Special 1 | . . . . 1 . . . . . . . . Average Slot Usage (%) 93 | . 99 100 98 97 94 85 90 86 92 90 88 78 Engine 6 | . 13 8 . 4 7 4 6 6 2 9 5 4 Core 4 | . . 5 14 4 4 3 7 2 7 . . . Treads 23 | . 27 28 26 34 27 16 15 17 20 14 5 4 Wheel 3 | . . . . . . 7 10 9 7 5 11 9 Device 12 | . 14 13 10 10 13 7 11 13 14 15 11 9 Storage 8 | . 14 14 14 9 7 7 7 5 5 6 11 10 Processor 7 | . . . . 4 16 23 13 9 7 5 5 5 Protection 2 | . . . 3 11 . . . . . 4 5 4 Energy Gun 3 | . . . . 16 5 . . . . . . . Ballistic Gun 6 | . 28 28 19 . . . . . . 1 5 3 Ballistic Cannon 6 | . . . 8 . 4 9 12 11 10 13 11 8 Slashing Weapon 1 | . . . . . 3 3 . 2 4 . . . Peak Build Rating 92 | 7 13 13 14 31 35 37 53 80 89 92 87 87 Average Rating 40 | 5 11 12 12 26 33 32 44 68 85 85 87 79 On Entrance 40 | . 7 12 13 14 29 30 36 53 76 88 87 87 Avg Prop Armor Cover (%) 11 | . . . . . 17 20 13 12 3 11 11 11 Naked Turns . | . . . . . . . . . . . . . Heaviest Build 113 | 14 24 24 22 65 62 70 71 79 93 113 113 113 Greatest Support 117 | 40 46 43 46 88 82 12 60 94 117 117 32 66 Greatest Overweight (x) 14 | . . . . . 4 5 7 4 3 6 3 14 Average Overweight (x) 1 | . . . . . . 4 4 1 . 4 3 2 Largest Inventory Capacity 20 | 8 10 10 10 20 20 20 20 20 20 20 20 20 Average Capacity 17 | 7 9 10 10 18 20 20 20 20 20 20 20 19 Most Carried 20 | 4 10 10 10 20 20 20 20 18 20 20 20 20 Average Carried 16 | 2 9 10 9 18 19 19 17 15 17 17 20 19 Final Capacity 20 | 8 10 10 10 20 20 20 20 20 20 20 20 5 Final Carried 20 | 4 10 10 10 20 19 19 17 18 16 20 20 5 Scrap Engine Consumption 28 | . . . . . . . 8 3 15 2 . . Constructs Created 4 | . . . . . . . . 1 . 3 . . Constructs Modified 4 | . . . . . . . . 1 . 3 . . Class Distribution -------------------- 42% | Mutant 20% | Scavenger-Mutant 11% | Scavenger-Skirmisher 7% | Skirmisher 6% | Scavenger-Assassin 5% | Scavenger-Tank 4% | Assassin Dominant Class ---------------- Mutant | -10/Materials Mutant | -10/Mines Mutant | -10/Subcaves Mutant | -8/Materials Scavenger-Assassin | -7/Factory Skirmisher | -7/Storage Scavenger-Mutant | -7/Recycling Mutant | -5/Factory Scavenger-Mutant | -5/Extension Scavenger-Skirmisher | -5/Cetus Scavenger-Tank | -5/Archives Scavenger-Tank | -5/Hub_04(d) Resources | -11 -10 -10 -10 -8 -7 -7 -7 -5 -5 -5 -5 -5 ----------- Run | Yrd Mat Min Sub Mat Fac Sto Rec Fac Ext Cet Arc Hub Matter Collected 4289 | 157 190 354 257 491 406 388 494 477 595 480 . . Remotely 734 | . . . . . . . . . 489 245 . . Salvage Created 4297 | 41 306 148 227 1065 574 356 120 642 459 359 . . Parts 194 | 5 22 8 13 51 23 17 2 24 16 13 . . Haulers Intercepted 6 | . 1 . . 4 1 . . . . . . . Recyclers Shooed 6 | . . 1 . 1 . . . 4 . . . . Parts Field Recycled . | . . . . . . . . . . . . . Retrieved Matter . | . . . . . . . . . . . . . Parts Self-Destructed 14 | . . . 14 . . . . . . . . . Prevented . | . . . . . . . . . . . . . Parts Restored . | . . . . . . . . . . . . . Kills | -11 -10 -10 -10 -8 -7 -7 -7 -5 -5 -5 -5 -5 ------- Run | Yrd Mat Min Sub Mat Fac Sto Rec Fac Ext Cet Arc Hub Combat Hostiles Destroyed 101 | . 10 4 7 25 13 10 2 14 7 9 . . Melee 12 | . . . . 1 2 4 . 3 2 . . . Guns 46 | . 10 4 7 21 3 . . . . 1 . . Cannons 33 | . . . . 1 6 5 2 8 5 6 . . AOE 10 | . . . . 2 2 1 . 3 . 2 . . Classes Destroyed 15 | 1 4 . 2 4 1 1 1 . 1 . . . Worker 1 | . . . . . . . . . 1 . . . Builder 4 | . 1 2 . 1 . . . . . . . . Tunneler 3 | 2 . . . . 1 . . . . . . . Hauler 6 | . 1 . . 4 1 . . . . . . . Recycler 5 | . . . . . . . 1 2 2 . . . Operator 1 | . . . . 1 . . . . . . . . Watcher 4 | . . . . 2 . . . 1 . 1 . . Swarmer 17 | . 6 . 1 4 . . . 6 . . . . Grunt 36 | . 4 4 . 12 7 3 . . 4 2 . . Brawler 2 | . . . . 1 . . . 1 . . . . Duelist 3 | . . . . 2 . . . 1 . . . . Sentry 18 | . . . 1 6 3 3 1 2 2 . . . Hunter 5 | . . . . . . 2 . 2 1 . . . Programmer 7 | . . . . . 3 2 . 2 . . . . Cetus Guard 7 | . . . . . . . . . . 7 . . Subdweller 6 | . . . 5 . . . 1 . . . . . Best Kill Streak 8 | 2 6 2 2 8 3 3 2 4 3 4 . . Combat Bots Only 7 | . 6 2 2 7 3 3 1 4 2 4 . . Max Kills in Single Turn 4 | 1 2 1 1 2 2 1 1 4 1 1 . . Gunslinging 1 | . 1 . . . . . . . . . . . Exploded 3 | . . . . 1 2 1 . 3 . 1 . . Melee 1 | . . . . 1 1 1 . 1 1 . . . Uniques/NPCs Destroyed . | . . . . . . . . . . . . . Combat | -11 -10 -10 -10 -8 -7 -7 -7 -5 -5 -5 -5 -5 -------- Run | Yrd Mat Min Sub Mat Fac Sto Rec Fac Ext Cet Arc Hub Hostile Shots Fired 1022 | . 49 18 38 105 214 124 56 120 127 78 . 93 Missed 301 | . 11 4 11 25 84 49 21 25 38 21 . 12 Hits 721 | . 38 14 27 80 130 75 35 95 89 57 . 81 Melee 11 | . . . . 1 . . . 10 . . . . Projectile 710 | . 38 14 27 79 130 75 35 85 89 57 . 81 AOE 2 | . . . . . . 1 . . 1 . . . Critical Strikes 37 | . . . 3 3 2 1 . 3 4 7 . 14 Damage Taken 12771 | . 436 172 532 1234 1420 853 327 1757 2113 1387 . 2540 Core 1593 | . 26 49 112 90 187 110 16 137 210 165 . 491 Absorbed by Shields 368 | . . . . 36 . . . 212 . 104 . 16 Redirected to Shielding 33 | . . . 18 15 . . . . . . . . Regen/Repaired (Parts) 834 | . 154 . . 120 . . . 33 400 127 . . Core Remaining (%) 65 | 100 . . 25 83 . . 55 . . . . . Volleys Fired 324 | 4 32 19 24 84 43 25 9 22 27 32 . 3 Largest 3 | 2 2 2 2 2 2 2 2 3 2 3 . 3 Hottest 160 | 40 46 46 53 160 122 80 80 117 81 125 . 125 Shots Fired 667 | 8 64 38 46 167 78 47 17 49 57 87 1 8 Gun 345 | 8 64 38 37 154 30 . . . . 12 . 2 Cannon 304 | . . . 9 11 46 44 16 46 57 69 1 5 Launcher 18 | . . . . 2 2 3 1 3 . 6 . 1 Special . | . . . . . . . . . . . . . Kinetic 476 | 8 64 38 46 22 46 44 16 46 57 81 1 7 Thermal 173 | . . . . 143 30 . . . . . . . Explosive 17 | . . . . 2 2 3 1 3 . 6 . . Electromagnetic 1 | . . . . . . . . . . . . 1 Robot Hit Streak 27 | 3 7 22 15 17 10 27 7 8 7 14 4 4 Robot Miss Streak 10 | 1 5 4 3 4 3 2 1 10 8 6 2 2 Penetration Max 1 | . . . . . . . . . 1 1 . . Secondary Targets 3 | . 1 1 . . 1 . . . . . . . Max Gunslinging Chain 1 | . 1 1 . . 1 . . . . . . . Shots Hit Robots 522 | 6 40 31 38 130 60 47 13 58 53 41 1 4 Core Hits 295 | 3 19 14 16 60 28 17 3 53 29 47 1 5 Critical Kills 5 | . . . . . . . . . 1 4 . . Critical Parts Destroyed 4 | . . . . . . . . . 1 3 . . Critical Strikes 39 | . . . . 9 3 5 1 5 6 10 . . Burn 10 | . . . . 9 1 . . . . . . . Destroy 11 | . . . . . . . . . 2 9 . . Blast 8 | . . . . . 1 3 1 . 2 1 . . Sever 10 | . . . . . 1 2 . 5 2 . . . Melee Attacks 96 | . . . . . 21 15 . 36 21 . . 3 Impact . | . . . . . . . . . . . . . Slashing 96 | . . . . . 21 15 . 36 21 . . 3 Piercing . | . . . . . . . . . . . . . Sneak Attacks 7 | . . . . . 1 . . 1 5 . . . Combat Hostiles 1 | . . . . . . . . . 1 . . . Follow-up Attacks . | . . . . . . . . . . . . . Damage Inflicted 13778 | 61 510 539 666 2590 1736 1463 433 1873 2185 1432 26 264 Guns 4282 | 61 491 519 602 2105 330 . . . . 174 . . Cannons 5587 | . . . 64 176 818 987 300 785 1241 1088 26 102 Explosions 1226 | . . . . 264 204 87 133 262 . 170 . 106 Melee 2567 | . . . . . 384 383 . 824 944 . . 32 Ramming 116 | . 19 20 . 45 . 6 . 2 . . . 24 Kinetic 7612 | 61 491 519 666 354 818 987 300 785 1241 1262 26 102 Thermal 2257 | . . . . 1927 330 . . . . . . . Explosive 1120 | . . . . 264 204 87 133 262 . 170 . . Electromagnetic 106 | . . . . . . . . . . . . 106 Impact . | . . . . . . . . . . . . . Slashing 2567 | . . . . . 384 383 . 824 944 . . 32 Piercing . | . . . . . . . . . . . . . Highest Corruption 35 | . . . . 2 3 7 7 16 16 16 16 35 Average Corruption 9 | . . . . 1 2 3 7 14 16 16 16 18 Corruption Purged 1 | . . . . . 1 . . . . . . . Corruption Blocked . | . . . . . . . . . . . . . Effects 185 | . . . . 3 21 13 27 16 47 32 3 23 Message Errors 38 | . . . . . 2 3 7 6 10 5 . 5 Matter Fused 56 | . . . . . 9 2 8 4 19 11 . 3 Heat Flow Errors 19 | . . . . 1 1 2 3 1 6 1 . 4 Energy Discharges 15 | . . . . 1 3 1 2 1 1 3 . 3 Parts Rejected 6 | . . . . . 1 . . . 1 2 . 2 Parts Fused 1 | . . . . . 1 . . . . . . . Data Loss (minor) 13 | . . . . 1 2 1 3 2 2 1 . 1 Data Loss (major) 10 | . . . . . . . 3 2 1 1 2 1 Misfires 10 | . . . . . . 3 . . 4 1 1 1 Alerts 2 | . . . . . 1 . . . 1 . . . Misdirections 5 | . . . . . . . . . 1 1 . 3 Weapon Failures 10 | . . . . . 1 1 1 . 1 6 . . Overload Shots . | . . . . . . . . . . . . . Overflow Damage 227 | . . . . 10 50 60 . 48 59 . . . Projectiles 109 | . . . . 10 21 60 . . 18 . . . Explosions 3 | . . . . . . . . 3 . . . . Melee 115 | . . . . . 29 . . 45 41 . . . Knockbacks 30 | . . . 2 3 3 6 . 9 5 . . 2 Impact 2 | . . . . . . 1 . . . . . 1 Kinetic 28 | . . . 2 3 3 5 . 9 5 . . 1 Secondary . | . . . . . . . . . . . . . Self-Inflicted Damage 250 | . . . . 160 . 3 50 . . . . 37 Shots 4 | . . . . 2 . . 1 . . . . 1 Rammed 21 | . 2 6 . 8 . 1 . 1 . . . 3 Targets Rammed 24 | . 2 6 . 9 . 1 . 1 . . . 5 Kicked 2 | . . . . . . . . . . . . 2 Crushed 1 | . . . . 1 . . . . . . . . Highest Temperature 431 | . 23 11 263 427 343 341 132 101 259 431 . 210 Average Temperature 102 | . 5 4 135 136 106 98 42 37 58 139 . 84 Received Heat Transfer 2913 | . 156 102 862 439 255 144 66 27 420 54 . 388 Effects 10 | . . . . 2 . 1 . . . 7 . . Shutdowns 6 | . . . . 1 . . . . . 5 . . Energy Bleed 2 | . . . . . . . . . . 2 . . Interference 1 | . . . . 1 . . . . . . . . Short Circuit 1 | . . . . . . 1 . . . . . . Siege Activations . | . . . . . . . . . . . . . Martial Activations . | . . . . . . . . . . . . . Shielding Activations . | . . . . . . . . . . . . . Robots Disrupted . | . . . . . . . . . . . . . Combat Hostiles . | . . . . . . . . . . . . . Robots Corrupted . | . . . . . . . . . . . . . Combat Hostiles . | . . . . . . . . . . . . . Parts Fried . | . . . . . . . . . . . . . Impact Corruptions . | . . . . . . . . . . . . . Robots Melted . | . . . . . . . . . . . . . Combat Hostiles . | . . . . . . . . . . . . . Parts Melted 9 | . . . . 7 1 . 1 . . . . . Heat Transferred 5592 | . . . . 4852 740 . . . . . . . Parts Sabotaged . | . . . . . . . . . . . . . Parts Stolen . | . . . . . . . . . . . . . Parts Stripped . | . . . . . . . . . . . . . Power Chain Reactions . | . . . . . . . . . . . . . Alert | -11 -10 -10 -10 -8 -7 -7 -7 -5 -5 -5 -5 -5 ------- Run | Yrd Mat Min Sub Mat Fac Sto Rec Fac Ext Cet Arc Hub Maximum Alert Level 1 | . . . . 1 . . . 1 1 . . . Low Security (%) 83 | 100 100 100 . 52 100 100 100 32 91 100 100 100 Level 1 16 | . . . . 47 . . . 67 8 . . . Level 2 . | . . . . . . . . . . . . . Level 3 . | . . . . . . . . . . . . . Level 4 . | . . . . . . . . . . . . . Level 5 . | . . . . . . . . . . . . . High Security . | . . . . . . . . . . . . . Max Security . | . . . . . . . . . . . . . Peak Influence 314 | 10 140 50 . 302 145 162 79 308 314 162 30 50 Initial 308 | . . . . . 107 48 59 308 115 162 30 3 Average 81 | 1 33 7 . 166 50 44 33 199 61 91 20 6 Influence Increases 4393 | 10 315 110 65 806 436 437 241 833 742 346 . 52 Destroy 0b10 Robot/C 2240 | . 200 80 40 500 260 200 20 280 440 220 . . Destroy 0b10 Robot/NC 120 | 10 10 10 . 40 10 . 5 15 15 5 . . Destroy Leader 458 | . 52 20 10 122 72 80 . 52 40 10 . . Allied During Kill 102 | . . . . . . . . . 89 13 . . Successful Hack 152 | . 23 . . 42 14 21 14 12 26 . . . Select Force Hacks 230 | . . . . . . . 180 . . . . 50 Disable Machine 225 | . . . . 45 45 90 . 15 30 . . . Destroy Structure 326 | . . . . 57 20 31 22 54 42 98 . 2 Advance Influence 300 | . . . . . . . . 300 . . . . Lose Combat Pursuer 240 | . 30 . 15 . 15 15 . 105 60 . . . Influence Decreases 4393 | 10 315 110 65 569 566 391 374 616 689 560 66 62 Entered New Map 598 | . . . . . 130 59 94 12 122 128 46 7 Time Decay 3145 | 10 315 110 65 544 394 282 270 404 416 262 20 53 Search Patrol Dispatched 100 | . . . . . . . . 100 . . . . Lost Part 379 | . . . . 25 42 50 10 100 80 70 . 2 Lost Ally 171 | . . . . . . . . . 71 100 . . Squads Dispatched 18 | . 2 . . 2 3 3 . 1 1 1 . 5 Investigation 7 | . 1 . . . . . . . 1 1 . 4 Extermination 6 | . . . . . 2 2 . 1 . . . 1 Reinforcement 5 | . 1 . . 2 1 1 . . . . . . Assault . | . . . . . . . . . . . . . Garrison . | . . . . . . . . . . . . . Intercept . | . . . . . . . . . . . . . Searches Triggered 1 | . . . . . . . . 1 . . . . Construction Impeded 2 | . . . . 1 . 1 . . . . . . Haulers Reinforced . | . . . . . . . . . . . . . Active Scanning Responses . | . . . . . . . . . . . . . Cargo Convoy Interrupts . | . . . . . . . . . . . . . Stealth | -11 -10 -10 -10 -8 -7 -7 -7 -5 -5 -5 -5 -5 --------- Run | Yrd Mat Min Sub Mat Fac Sto Rec Fac Ext Cet Arc Hub Distress Signals 19 | . 2 . . 2 1 1 5 . 4 2 . 2 Communications Jammed . | . . . . . . . . . . . . . Distress Signals . | . . . . . . . . . . . . . Times Spotted 177 | . 22 4 11 36 20 15 3 19 22 12 . 13 Peak Tracking Total 9 | . 7 2 2 6 6 5 1 7 6 5 . 9 Tactical Retreats 9 | . 1 . 1 . 1 1 . 3 2 . . . Traps | -11 -10 -10 -10 -8 -7 -7 -7 -5 -5 -5 -5 -5 ------- Run | Yrd Mat Min Sub Mat Fac Sto Rec Fac Ext Cet Arc Hub Traps Triggered 9 | . 4 . . 3 . 1 . 1 . . . . Indirectly . | . . . . . . . . . . . . . Trap Hack Attempts . | . . . . . . . . . . . . . Triggered . | . . . . . . . . . . . . . Disarmed . | . . . . . . . . . . . . . Reprogrammed . | . . . . . . . . . . . . . Reused . | . . . . . . . . . . . . . Traps Extracted . | . . . . . . . . . . . . . Installed . | . . . . . . . . . . . . . Triggered . | . . . . . . . . . . . . . Machines | -11 -10 -10 -10 -8 -7 -7 -7 -5 -5 -5 -5 -5 ---------- Run | Yrd Mat Min Sub Mat Fac Sto Rec Fac Ext Cet Arc Hub Machines Disabled 17 | . . . . 3 3 6 . 1 3 1 . . Max in Single Turn 3 | . . . . 3 2 1 . 1 . 1 . . Garrison Access 2 | . . . . 1 . . . 1 . . . . Network Hub 1 | . . . . . . . . . . . . 1 Energy Cycler 2 | . . . . . . . . . 2 . . . Machines Repaired . | . . . . . . . . . . . . . Machines Dismantled . | . . . . . . . . . . . . . Machines Sabotaged 1 | . . . . . . . . . . . . 1 Overloaded Fab Kills . | . . . . . . . . . . . . . Hacking | -11 -10 -10 -10 -8 -7 -7 -7 -5 -5 -5 -5 -5 --------- Run | Yrd Mat Min Sub Mat Fac Sto Rec Fac Ext Cet Arc Hub Machines Accessed 54 | . 8 . . 10 6 5 10 4 4 1 1 5 Terminals 36 | . 7 . . 7 4 5 2 1 4 1 . 5 Fabricators 1 | . . . . . 1 . . . . . . . Repair Stations 5 | . 1 . . 1 1 . . 2 . . . . Recycling Units 6 | . . . . . . . 6 . . . . . Scanalyzers 1 | . . . . 1 . . . . . . . . Garrison Access 2 | . . . . 1 . . . 1 . . . . Total Hacks 167 | . 24 . . 31 12 11 26 9 15 3 25 11 Successful 94 | . 14 . . 15 3 9 15 5 7 . 25 1 Failed 72 | . 10 . . 15 9 2 11 4 8 3 . 10 Catastrophic 7 | . . . . . 3 . . 1 . 1 . 2 Database Lockouts 1 | . . . . 1 . . . . . . . . Manual 92 | . 18 . . 19 8 9 17 . 10 . . 11 Terminals 102 | . 21 . . 23 9 11 8 1 15 3 . 11 Fabricators 2 | . . . . . 2 . . . . . . . Repair Stations 12 | . 3 . . 3 1 . . 5 . . . . Recycling Units 15 | . . . . . . . 15 . . . . . Scanalyzers 3 | . . . . 3 . . . . . . . . Garrison Access 5 | . . . . 2 . . . 3 . . . . Terminal Hacks 46 | . 4 . . 3 2 5 4 1 2 . 25 . Record 26 | . . . . . . . 1 . . . 25 . Prototype ID Bank 1 | . . . . 1 . . . . . . . . Open Door 5 | . . . . . . 3 . 1 1 . . . Branch Access Points 2 | . . . . 1 . 1 . . . . . . Terminal Index 4 | . 1 . . 1 . 1 1 . . . . . Alert Level 2 | . . . . . 2 . . . . . . . Locate Traps 1 | . 1 . . . . . . . . . . . Registered Components 1 | . 1 . . . . . . . . . . . Registered Prototypes 1 | . . . . . . . . . 1 . . . Zone Layout 1 | . 1 . . . . . . . . . . . Release Object 2 | . . . . . . . 2 . . . . . Fabricator Hacks . | . . . . . . . . . . . . . Repair Station Hacks 7 | . 2 . . 2 . . . 3 . . . . Scan Component 4 | . 1 . . 1 . . . 2 . . . . Repair 3 | . 1 . . 1 . . . 1 . . . . Recycling Unit Hacks 4 | . . . . . . . 4 . . . . . Report Inventory 3 | . . . . . . . 3 . . . . . Retrieve Matter 1 | . . . . . . . 1 . . . . . Scanalyzer 2 | . . . . 2 . . . . . . . . Retrieve Study 2 | . . . . 2 . . . . . . . . Garrison Access Hacks 2 | . . . . 1 . . . 1 . . . . Seal Access 2 | . . . . 1 . . . 1 . . . . Unauthorized Hacks 33 | . 8 . . 7 1 4 7 . 5 . . 1 Terminals 27 | . 8 . . 7 1 4 1 . 5 . . 1 Assimilate 2 | . . . . . . . . . 2 . . . Botnet 6 | . 2 . . 1 . 2 . . 1 . . . Operators 2 | . 1 . . 1 . . . . . . . . Skim 16 | . 5 . . 5 1 2 1 . 2 . . . Sabotage 1 | . . . . . . . . . . . . 1 Fabricators . | . . . . . . . . . . . . . Repair Stations . | . . . . . . . . . . . . . Recycling Units 6 | . . . . . . . 6 . . . . . Tunnel 6 | . . . . . . . 6 . . . . . Scanalyzers . | . . . . . . . . . . . . . Garrison Access . | . . . . . . . . . . . . . Data Cores Recovered 1 | . . . . 1 . . . . . . . . Used . | . . . . . . . . . . . . . Hacking Detections 38 | . 7 . . 8 6 2 4 2 4 1 . 4 Full Trace Events 5 | . 1 . . . . . . . . 1 . 3 Feedback Events . | . . . . . . . . . . . . . Feedback Blocked . | . . . . . . . . . . . . . Robot Schematics Acquired . | . . . . . . . . . . . . . Robots Built . | . . . . . . . . . . . . . Authchips . | . . . . . . . . . . . . . Time . | . . . . . . . . . . . . . Total Robot Build Rating . | . . . . . . . . . . . . . Part Schematics Acquired . | . . . . . . . . . . . . . Parts Built . | . . . . . . . . . . . . . Authchips . | . . . . . . . . . . . . . Time . | . . . . . . . . . . . . . Total Part Build Rating . | . . . . . . . . . . . . . Part Studies Acquired 2 | . . . . 2 . . . . . . . . Parts Repaired 3 | . 1 . . 1 . . . 1 . . . . Time 80 | . 16 . . 26 . . . 38 . . . . Parts Recycled . | . . . . . . . . . . . . . Recycled Matter . | . . . . . . . . . . . . . Retrieved Matter . | . . . . . . . . . . . . . Retrieved Components . | . . . . . . . . . . . . . Parts Scanalyzed . | . . . . . . . . . . . . . Part Schematics Acquired . | . . . . . . . . . . . . . Parts Damaged . | . . . . . . . . . . . . . Bothacking | -11 -10 -10 -10 -8 -7 -7 -7 -5 -5 -5 -5 -5 ------------ Run | Yrd Mat Min Sub Mat Fac Sto Rec Fac Ext Cet Arc Hub Used RIF Installer . | . . . . . . . . . . . . . Robots Hacked . | . . . . . . . . . . . . . Non-combat . | . . . . . . . . . . . . . Combat . | . . . . . . . . . . . . . Robot Hacks Applied . | . . . . . . . . . . . . . Relay Couplers Released . | . . . . . . . . . . . . . Fabnet Peak Effective % . | . . . . . . . . . . . . . Robots Rewired 8 | . . . . . . . . . 8 . . . Allies Hacked . | . . . . . . . . . . . . . Hacks Repelled . | . . . . . . . . . . . . . Allies | -11 -10 -10 -10 -8 -7 -7 -7 -5 -5 -5 -5 -5 -------- Run | Yrd Mat Min Sub Mat Fac Sto Rec Fac Ext Cet Arc Hub Total Allies 10 | . . . . . . . . . 10 . . . Largest Group 5 | . . . . . . . . . 5 5 . . Highest-Rated Group 150 | . . . . . . . . . 150 144 . . Highest-Rated Ally 39 | . . . . . . . . . 39 39 . . Total Orders . | . . . . . . . . . . . . . Ally Attacks 113 | . . . . . . . . . 83 30 . . Total Damage 2028 | . . . . . . . . . 1454 574 . . Kills 17 | . . . . . . . . . 15 2 . . Allies Corrupted . | . . . . . . . . . . . . . Allies Melted 1 | . . . . . . . . . 1 . . . Intel | -11 -10 -10 -10 -8 -7 -7 -7 -5 -5 -5 -5 -5 ------- Run | Yrd Mat Min Sub Mat Fac Sto Rec Fac Ext Cet Arc Hub Active Infowar (turns) 9243 | 9 1136 718 661 1428 1604 647 808 745 1124 363 . . Optics 3544 | . . . . 977 1604 647 316 . . . . . Sensors 5105 | . . . . . 1432 647 794 745 1124 363 . . Seismic 2975 | 9 1136 718 661 451 . . . . . . . . ECM 11 | . . . . 11 . . . . . . . . Robot Analysis Total . | . . . . . . . . . . . . . Derelict Logs Recovered 2 | . . 2 . . . . . . . . . . Drone Launches . | . . . . . . . . . . . . . Drone Recoveries . | . . . . . . . . . . . . . Exploration | -11 -10 -10 -10 -8 -7 -7 -7 -5 -5 -5 -5 -5 ------------- Run | Yrd Mat Min Sub Mat Fac Sto Rec Fac Ext Cet Arc Hub Turns Passed 11010 | 86 1136 748 854 1995 1604 647 808 962 1124 561 58 427 Spaces Moved 5349 | 40 455 416 463 763 859 325 494 422 569 246 41 256 Core 3 | 2 . . . . . . . . . . . 1 Treads 3672 | 38 455 416 463 763 853 . 21 135 494 34 . . Legs 3 | . . . . . . . . . . . . 3 Wheels 1671 | . . . . . 6 325 473 287 75 212 41 252 Hover . | . . . . . . . . . . . . . Flight . | . . . . . . . . . . . . . Fastest Speed 50 | 50 160 160 160 156 150 135 106 115 115 145 145 130 Average Speed 157 | 154 160 160 160 158 155 154 152 152 158 176 145 147 Slowest Speed 750 | 160 160 160 160 160 240 165 246 315 166 240 145 750 Overloaded Moves . | . . . . . . . . . . . . . Propulsion Burnouts . | . . . . . . . . . . . . . Robots Hopped . | . . . . . . . . . . . . . Potential Cave-ins . | . . . . . . . . . . . . . Cave-ins Triggered . | . . . . . . . . . . . . . Exploration Rate (%) 52 | 3 74 79 38 73 24 58 77 12 73 72 71 32 Regions Visited 12 Branch Regions 8 Pre-discovered Areas 15 | . 5 . . 3 . 1 6 . . . . . Known Exits Taken 9 | . . 1 . 1 1 1 1 1 1 1 1 . Unknown Exits Taken 3 | 1 1 . 1 . . . . . . . . . Scrap Searched 1 | . . 1 . . . . . . . . . . Spaces Dug 12 | . . . . . 10 . 2 . . . . . Terrain Destroyed 284 | . . . . 50 19 42 26 25 18 104 . . Melee 10 | . . . . . 10 . . . . . . . Projectile 48 | . . . . . 3 7 5 5 18 10 . . AOE 226 | . . . . 50 6 35 21 20 . 94 . . Terrain Rammed . | . . . . . . . . . . . . . Walls Destroyed . | . . . . . . . . . . . . . Machines Disabled . | . . . . . . . . . . . . . Actions | -11 -10 -10 -10 -8 -7 -7 -7 -5 -5 -5 -5 -5 --------- Run | Yrd Mat Min Sub Mat Fac Sto Rec Fac Ext Cet Arc Hub Total 7124 | 54 806 457 529 1381 1012 399 531 626 699 301 40 289 Wait 990 | . 280 13 34 440 49 15 5 118 21 1 . 14 Move 5337 | 39 454 415 462 762 858 324 493 421 568 245 40 256 Hop . | . . . . . . . . . . . . . Pick Up 87 | 4 12 . 2 28 12 5 4 7 3 9 . 1 Fast Attach 45 | 7 7 . . 5 3 2 5 7 6 2 . 1 Attach 32 | . . . 2 3 5 3 1 6 4 4 . 4 Detach . | . . . . . . . . . . . . . Swap 75 | . 7 3 3 25 12 5 4 7 2 6 . 1 Drop 65 | . 12 1 . 25 9 4 10 1 . 2 . 1 Fire 324 | 4 32 19 24 84 43 25 9 22 27 32 . 3 Melee 96 | . . . . . 21 15 . 36 21 . . 3 Ram 4 | . . . . . . 1 . . . . . 3 Kick 2 | . . . . . . . . . . . . 2 Crush 18 | . 2 6 . 9 . . . 1 . . . . Escape Stasis . | . . . . . . . . . . . . . Rewire 49 | . . . 2 . . . . . 47 . . . Trap . | . . . . . . . . . . . . . Miscellaneous . | . . . . . . . . . . . . . Route ------- -11/Scrapyard -10/Materials (discovered 4 exits: *Mat x3 / [*Min]) -10/Mines (discovered 3 exits: *Mat x2 / *Sub) -10/Subcaves (discovered 2 exits: *Mat / [*Scr]) -8/Materials (discovered 3 exits: *Fac x3) -7/Factory (discovered 6 exits: *Fac x3 / *Sto x2 / Low) -7/Storage (discovered 2 exits: Fac / *Rec) -7/Recycling -5/Factory -5/Extension (discovered 3 exits: *Fac x2 / *Cet) -5/Cetus (discovered 3 exits: *Fac x2 / *Arc) -5/Archives -5/Hub_04(d) History --------- Turn | Location | Event 22 | -11/Scrapyard | Discovered new exit (range 16) 87 | -11/Scrapyard | Entered Materials 313 | -10/Materials | Build established: Mutant 411 | -10/Materials | Discovered new exit (range 4) 503 | -10/Materials | Discovered new exit (range 9) 551 | -10/Materials | Discovered new exit (range 3) 706 | -10/Materials | Repaired Imp. Treads 757 | -10/Materials | Loaded intel: 18 trap records 770 | -10/Materials | Discovered new exit (range 7) 889 | -10/Materials | Learned location of Recycling (-7) 941 | -10/Materials | Learned location of Mines (-9) 1036 | -10/Materials | Learned 2 Mines zone layouts 1102 | -10/Materials | Learned location of 1 exit from Storage 1223 | -10/Materials | Entered Mines 1224 | -10/Mines | Identified exit to Materials 1225 | -10/Mines | Identified exit to Subcaves 1278 | -10/Mines | Learned location of 1 exit from Materials 1310 | -10/Mines | Learned Materials terminal intel 1971 | -10/Mines | Entered Subcaves 1972 | -10/Subcaves | Approached by a straggling Scientist 2160 | -10/Subcaves | Core integrity fell below 50% 2546 | -10/Subcaves | Discovered new exit (range 13) 2825 | -10/Subcaves | Entered Materials 2825 | -8/Materials | Evolved 4 slots: Propulsion x2, Utility x2 2826 | -8/Materials | Identified exit to Factory 2827 | -8/Materials | Loaded intel: 12 terminal locations 3362 | -8/Materials | Destroyed 7 combat bots 3528 | -8/Materials | Repaired Lgt. Treads 4198 | -8/Materials | Discovered exit to Factory (range 18) 4265 | -8/Materials | Central database locked down 4431 | -8/Materials | Learned 2 Lower Caves zone layouts 4580 | -8/Materials | Build established: Scavenger-Mutant 4595 | -8/Materials | Learned location of Zion (-6) 4655 | -8/Materials | Learned location of 1 exit from Recycling 4735 | -8/Materials | Learned 12 Factory zone layouts 4787 | -8/Materials | Learned Storage terminal intel 4820 | -8/Materials | Entered Factory 4820 | -7/Factory | Evolved 2 slots: Power x1, Utility x1 4821 | -7/Factory | Identified exit to Storage 4822 | -7/Factory | Identified exit to Factory 4822 | -7/Factory | Identified exit to Lower Caves 5395 | -7/Factory | Build established: Scavenger-Assassin 5416 | -7/Factory | Discovered exit to Factory (range 4) 5863 | -7/Factory | Lost 3 parts (2p1n) 6395 | -7/Factory | Discovered exit to Storage (range 17) 6424 | -7/Factory | Entered Storage 6425 | -7/Storage | Identified exit to Recycling 6427 | -7/Storage | Loaded intel: 12 terminal locations 6632 | -7/Storage | Learned location of Armory (-4) 7067 | -7/Storage | Used back door to open Recycling access 7071 | -7/Storage | Entered Recycling 7072 | -7/Recycling | Identified exit to Factory 7177 | -7/Recycling | Build established: Skirmisher 7367 | -7/Recycling | Entered Scraplab 7380 | -7/Recycling | Found Prototype Device 7380 | -7/Recycling | Identified Scrap Engine 7670 | -7/Recycling | Build established: Scavenger-Mutant 7879 | -7/Recycling | Entered Factory 7879 | -5/Factory | Evolved 4 slots: Propulsion x1, Utility x2, Weapon x1 8074 | -5/Factory | Lost 3 parts (1p1n1w) 8179 | -5/Factory | Search patrols dispatched 8273 | -5/Factory | Repaired Imp. Sensor Array 8463 | -5/Factory | System corruption reached 10% 8493 | -5/Factory | Lost 4 parts (1p1n2u) 8730 | -5/Factory | Build established: Mutant 8834 | -5/Factory | Discovered new exit (range 6) 8839 | -5/Factory | Identified exit to Extension 8841 | -5/Factory | Entered Extension 9072 | -5/Extension | Energy Cycler disabled 9072 | -5/Extension | Rescued a captive Derelict 9072 | -5/Extension | Rescued a captive Derelict 9072 | -5/Extension | Rescued a captive Derelict 9072 | -5/Extension | Rescued a captive Derelict 9073 | -5/Extension | Rescued a captive Derelict 9074 | -5/Extension | Rescued a captive Derelict 9074 | -5/Extension | Rescued a captive Derelict 9074 | -5/Extension | Rescued a captive Derelict 9076 | -5/Extension | Rescued a captive Derelict 9077 | -5/Extension | Rescued a captive Derelict 9077 | -5/Extension | Rescued a captive Derelict 9262 | -5/Extension | Spotted B-75 Beast 9306 | -5/Extension | Spotted B-75 Beast 9314 | -5/Extension | Allies destroyed B-75 Beast 9318 | -5/Extension | Allies destroyed B-75 Beast 9320 | -5/Extension | Discovered new exit (range 15) 9343 | -5/Extension | Lost 5 parts (2p2n1u) 9372 | -5/Extension | Extracted ID and sensor layout for unrecognized location from A7's data core 9605 | -5/Extension | Discovered new exit (range 16) 9608 | -5/Extension | Discovered new exit (range 14) 9624 | -5/Extension | Build established: Scavenger-Mutant 9628 | -5/Extension | Identified exit to Cetus 9632 | -5/Extension | Identified exit to Factory 9965 | -5/Extension | Entered Cetus 9965 | -5/Cetus | Accompanied by 5 allies 9988 | -5/Cetus | Spotted Cetus Guard 9988 | -5/Cetus | Spotted Cetus Guard 9994 | -5/Cetus | Spotted Cetus Guard 10003 | -5/Cetus | Allies destroyed Cetus Guard 10008 | -5/Cetus | Destroyed Cetus Guard 10012 | -5/Cetus | Spotted Cetus Guard 10021 | -5/Cetus | Destroyed Cetus Guard 10031 | -5/Cetus | Destroyed Cetus Guard 10036 | -5/Cetus | Lost 3 parts (1p1n1w) 10044 | -5/Cetus | Lost 4 allies 10118 | -5/Cetus | Discovered exit to Factory (range 16) 10307 | -5/Cetus | Build established: Scavenger-Skirmisher 10310 | -5/Cetus | Discovered new exit (range 15) 10362 | -5/Cetus | Spotted Cetus Guard 10362 | -5/Cetus | Spotted Cetus Guard 10367 | -5/Cetus | Spotted Cetus Guard 10371 | -5/Cetus | Core integrity fell below 50% 10372 | -5/Cetus | Destroyed Cetus Guard 10372 | -5/Cetus | Spotted Cetus Guard 10385 | -5/Cetus | Destroyed Cetus Guard 10396 | -5/Cetus | Destroyed Cetus Guard 10399 | -5/Cetus | Destroyed Cetus Guard 10422 | -5/Cetus | Discovered exit to Factory (range 16) 10426 | -5/Cetus | Lost 4 parts (2n2u) 10431 | -5/Cetus | Met Revision 17 10525 | -5/Cetus | Identified exit to Archives 10526 | -5/Cetus | Entered Archives 10544 | -5/Archives | Met Zhirov 10550 | -5/Archives | Reinforcements dispatched to Archives 10560 | -5/Archives | Read partially decrypted archive contents 10563 | -5/Archives | Discovered new exit (range 15) 10583 | -5/Archives | Identified exit to Hub_04(d) 10584 | -5/Archives | Entered Hub_04(d) 10628 | -5/Hub_04(d) | Build established: Scavenger-Tank 10672 | -5/Hub_04(d) | Network Hub disabled 10888 | -5/Hub_04(d) | Spotted Lightning 10889 | -5/Hub_04(d) | Spotted Lightning 10936 | -5/Hub_04(d) | Spotted Lightning 10995 | -5/Hub_04(d) | System corruption reached 30% 11002 | -5/Hub_04(d) | Core integrity fell below 20% 11011 | -5/Hub_04(d) | Destroyed by G-50 Soldier with Heavy Laser Last Messages --------------- functional. 10999_ Com. Wheel destroyed. 10999_ Terminal disabled. 11001_ Critical hit (Burn: +37). 11001_ EMDS Slug penetrates Wall. 11001_ Hvy. Shock Bomb Launcher destroyed. 11002_ G-50 Soldier system terminally corrupted. 11002_ Penetrated by EMDS Slug. 11003_ System corrupted: Heat flow error (+162). 11003_ Penetrated by EMDS Slug. 11004_ K-01 Serf collects debris. 11006_ EMDS Slug penetrates Wall. 11006_ Scrap Engine destroyed. 11007_ G-50 Soldier IFF system glitched. 11007_ K-01 Serf collects debris. 11007_ Penetrated by EMDS Slug. 11009_ Hcp. Storage Unit destroyed. 11010_ Slammed into G-50 Soldier. 11010_ G-50 Soldier knocked back. 11011_ Slammed into G-50 Soldier. Map ----- +----------------------------------------------------+ | # " " !* " " " # "" # | | # " " * " "T" # % =% " # | | #! " " " """ # = " # | | # # %= " # | | ########+######### """""""""" " # | | ###### ######"" " " " """""""# | | T" " """"""""""""" | | " " " " # | | ###### ##+#######" " " | | ?##??## ##????#??# " " " # | | ? ???# #??? #??# " " ! " | | ? #??# ## #??# " " " | | " #??# + #??#####""" " | | " !#??# ## ########""" " | | #??# #??? ## " " | | " #??# #?????## " " # | | " #??# #?????#; " ! " | | " #??# #?????#; k """"""""""""" # | | #??# #????##" " | | " #??# #????# "! # # # | | " #??# #?# ###" ############### | | " =#??# #?# ; ## #???? | | #??# #?#####; ## " " " #???? | | #+##### #######;;;;;;#*### " " " #???? | | # " " " #???? | | g@g #???? | | [h!#i" " " #???? | | #+#########"#########+###!# " " #???? | | #??? ???# =hgh] " " " #???? | | "#?# ?# =%/ #???? | | "#?# ## !##########???? | | "#?# ## #????????????? | | "" T#?# [ ## #????????????? | | "" "#?# ## #????????????? | | "" "#?# ## ?????????????? | | "" "#?# ! ## ?????????????? | | #?# ## ?????????????? | | ######?###################?????????????? | | ???????????????????????????????????????? | | | | | | | | | | | | | | | | | | | | | | | +----------------------------------------------------+ Best States ------------- Heat Dissipation 40 Energy Generation 36 Energy Capacity 540 Matter Stores 300 Matter Capacity 450 Sight Range 18 Robot Scan Range 15 Terrain Scan Density 10 ECM Strength 1 Base Temperature (-) 100 Armor Coverage 225 Core Shielding 20 Evasion (%) 50 Targeting Accuracy 8 Recoil Reduction 4 Matter Filtering 30 Salvage Targeting 3 Defensive Hacking 10 Item Schematics ----------------- None Robot Schematics ------------------ None Fabricated ------------ Nothing Repaired ---------- Imp. Treads | 1% | -10/Materials Lgt. Treads | 14% | -8/Materials Imp. Sensor Array | 22% | -5/Factory Studied --------- Adv. Treads | -8/Materials | Hacked Flak Cannon | -8/Materials | Hacked Alien Tech Used ----------------- None Achievements -------------- None Challenges ------------ None Game ------ Seed EncryptedAntigravDetector Manual? 0 Play Time 01:02:37 Cumulative 144.1 hours Start 2026.01.15 @ 23:54:17 End 2026.01.18 @ 18:59:39 Sessions 3 Manual Loads 0 Difficulty Rogue Special Mode None Game No. 357 Rogue 355 Adventurer 2 Explorer 0 Win Type - Total 1 Types 1/0/0/0/0/0/0/0/0/0 Lore% 81 Gallery% 64 Achievement% 44 Wizard Run 0 Options --------- Layout 2 ASCII 0 Keyboard 0 Movement Numpad Keybinds 0 Fullscreen 2 Font 24/Smallcaps Map View 50x44 Zoom Use 0% Tactical HUD 1 Map Filters NONE Filters NONE Steam 1 RUN: fd7a3830-cf7d-4e05-a6c7-b707edcf4b7a